fUSD/lending_fUSD_20250521
["ID","MTS","AMOUNT","RATE_DAILY","PERIOD"]
[361792524,1747803034709,-480.51583006,0.0003466,2]
[361792525,1747803034719,-163.70482418,0.0003466,15]
[361792526,1747803034729,-151.0,0.00034669,5]
[361792527,1747803034740,-151.0,0.00034669,7]
[361792528,1747803034750,-332.117578,0.00034669,7]
[361792529,1747803034760,-332.117578,0.00034669,7]
[361792530,1747803034771,-151.0,0.00034669,7]
[361792531,1747803034780,-285.316898,0.00034669,7]
[361792532,1747803034791,-151.0,0.00034669,7]
[361792533,1747803034800,-47.46629176,0.00034669,7]
[361792561,1747803037756,-252.0,0.00011999,2]
[361792562,1747803037766,-822.0,0.0002559,2]
[361792563,1747803037778,-131.0785962,0.0002559,2]
[361792564,1747803037788,-151.0,0.0003462,7]
[361792565,1747803037798,-203.54328824,0.00034669,7]
[361792566,1747803037808,-251.00958,0.00034669,7]
[361792567,1747803037818,-202.441986,0.00034669,7]
[361792568,1747803037828,-202.441986,0.00034669,7]
[361792569,1747803037838,-137.70456356,0.00034669,7]
[361792570,1747803037866,-13.29543644,0.00034669,7]
[361792571,1747803037876,-151.0,0.00034669,7]
[361792572,1747803037888,-151.0,0.00034669,7]
[361792573,1747803037898,-151.0,0.00034669,7]
[361792574,1747803037907,-1164.70456356,0.00034669,2]
[361792575,1747803037918,-3623.60042211,0.00034669,2]
[361792576,1747803038023,-11874.1775,0.00034669,2]
[361792577,1747803038036,-1342.69,0.00034669,2]
[361792578,1747803038048,-1070.70831661,0.00034669,2]
[361792580,1747803038060,-575.44595638,0.00034669,2]
[361792581,1747803038072,-7449.65424134,0.00034669,2]
[361792582,1747803038082,-563.0,0.00034675,2]
[361792583,1747803038092,-1314.7746,0.0003468,2]
[361792584,1747803038102,-500.0,0.0003468,2]
[361792586,1747803038111,-814.71635181,0.000347,9]
[361792588,1747803038123,-185.28364819,0.000347,9]
[361792589,1747803038135,-142.09505082,0.000347,7]
[361792590,1747803038155,-8.90494918,0.000347,7]
[361792592,1747803038166,-151.0,0.00034702,7]
[361792593,1747803038175,-151.0,0.00034702,7]
[361792594,1747803038185,-292.724242,0.00034702,7]
[361792595,1747803038195,-151.0,0.00034702,7]
[361792596,1747803038204,-151.0,0.00034702,7]
[361792597,1747803038213,-563.0,0.00034702,2]
[361792598,1747803038223,-622.94168485,0.00034723,7]
[361792599,1747803038232,-563.0,0.0003473,2]
[361792600,1747803038242,-1400.12478943,0.00034738,2]
[361792601,1747803038252,-352.57805184,0.00034749,2]
[361792602,1747803038262,-151.0,0.00034749,7]
[361792603,1747803038271,-151.0,0.00034749,7]
[361792604,1747803038280,-6989.0958926,0.00034749,2]
[361792605,1747803038292,-692.74999987,0.00034749,2]
[361792606,1747803038307,-2047.54358055,0.00034749,2]
[361792607,1747803038320,-31570.18814679,0.00034749,2]
[361792608,1747803040034,-284.208,0.00028262,2]
[361792609,1747803040044,-1874.13749774,0.00034749,2]
[361792610,1747803040056,-365.66,0.00034749,2]
[361792611,1747803040068,-522.91188455,0.00034749,2]
[361792612,1747803040087,-312.94158219,0.00034749,2]
[361792613,1747803040251,-53665.2253008,0.00034749,2]
[361792614,1747803040366,-431.89500002,0.00034749,2]
[361792615,1747803040425,-2147.7993,0.00034749,2]
[361792622,1747803042896,-927.8025428,0.00034749,2]
[361792623,1747803042955,-1790.68889644,0.00034749,2]
[361792624,1747803042967,-1631.64817584,0.00034749,2]
[361792625,1747803042979,-21526.968,0.00034749,2]
[361792626,1747803043018,-585.49,0.00034749,2]
[361792627,1747803043123,-8313.35309977,0.00034749,2]
[361792629,1747803043245,-1072.91269734,0.00034749,2]
[361792890,1747803045817,-588.89911124,0.0002559,2]
[361792891,1747803045829,-213.331,0.00028262,2]
[361792892,1747803045839,-238.851,0.00028262,2]
[361792893,1747803045849,-32578.91888866,0.00034749,2]
[361792894,1747803045948,-12987.36748736,0.00034749,2]
[361792895,1747803046071,-10744.9806016,0.00034749,2]
[361792896,1747803046127,-927.93583648,0.00034749,2]
[361792897,1747803046140,-909.9437544,0.00034749,2]
[361793073,1747803132407,3196.0,0.00027397,120]
[361793074,1747803922497,1092.14,0.0002,30]
[361793103,1747804231973,-158.07,0.00013699,2]
[361793104,1747804231984,-250.0,0.00015068,2]
[361793105,1747804231996,-250.0,0.00016219,2]
[361793106,1747804232007,-250.33418982,0.0001874,2]
[361793107,1747804232019,-250.0,0.0002298,2]
[361793108,1747804232030,-163.57324869,0.000275,120]
[361793109,1747804232041,-26.18640165,0.00027509,2]
[361793110,1747804232090,-473.81359835,0.00027509,2]
[361793111,1747804232101,-261.0,0.00027692,2]
[361793112,1747804232112,-312.0,0.0002783,2]
[361793113,1747804232124,-174.21003561,0.00028093,2]
[361793114,1747804232135,-493.39264736,0.00028188,2]
[361793115,1747804232164,-429.89096435,0.00028188,2]
[361793116,1747804232180,-500.0,0.00028193,2]
[361793117,1747804232192,-183.127,0.00028262,2]
[361793118,1747804232202,-1600.0,0.00030081,2]
[361793119,1747804232213,-400.0,0.00030082,2]
[361793120,1747804232223,-301.79,0.00030083,2]
[361793121,1747804232233,-2517.1920356,0.00030083,2]
[361793122,1747804232246,-902.06412427,0.00030083,2]
[361793123,1747804232259,-551.86568685,0.00030083,2]
[361793138,1747804232455,-1206.1807617,0.00030083,2]
[361793165,1747804232781,-4698.27739158,0.00030083,2]
[361793166,1747804232875,-338.38,0.0003015,2]
[361793167,1747804232886,-705.71,0.00030382,20]
[361793168,1747804232898,-696.85,0.00030382,2]
[361793169,1747804232909,-450.0,0.00030536,2]
[361793170,1747804232921,-261.117,0.00030537,2]
[361793171,1747804232943,-203.436,0.00030537,2]
[361793173,1747804232954,-799.0,0.00030537,2]
[361793175,1747804232965,-4045.0,0.00030537,2]
[361793177,1747804232976,-154.0,0.00030537,2]
[361793180,1747804232988,-6875.968,0.00030537,2]
[361793182,1747804233000,-838.0,0.00030537,2]
[361793184,1747804233011,-300.25,0.00030698,2]
[361793186,1747804233023,-302.8,0.00030698,2]
[361793188,1747804233035,-303.93,0.00030698,2]
[361793190,1747804233048,-213.22427222,0.000309,23]
[361793192,1747804233063,-268.52,0.00031285,2]
[361793194,1747804233075,-165.67,0.00031579,2]
[361793195,1747804233087,-165.67,0.00031605,2]
[361793196,1747804233098,-165.67,0.00031631,2]
[361793198,1747804233110,-165.67,0.00031658,2]
[361793200,1747804233121,-165.67,0.00031684,2]
[361793202,1747804233132,-165.67,0.0003171,2]
[361793204,1747804233143,-165.67,0.00031737,2]
[361793206,1747804233153,-1500.0,0.00031754,120]
[361793208,1747804233164,-249.87,0.00031924,120]
[361793210,1747804233183,-1000.0,0.00032104,2]
[361793212,1747804233194,-1044.25,0.00032278,2]
[361793214,1747804233207,-1153.0,0.00032555,3]
[361793216,1747804233217,-166.09,0.00032927,2]
[361793218,1747804233228,-1417.68,0.00033018,2]
[361793220,1747804233239,-5074.432784,0.00033129,5]
[361793222,1747804233250,-5074.432784,0.00033149,5]
[361793224,1747804233263,-688.52268316,0.00033293,7]
[361793226,1747804233276,-23900.0,0.00033326,2]
[361793229,1747804233288,-2247.55,0.00033331,2]
[361793231,1747804233298,-312.64,0.00033405,2]
[361793233,1747804233310,-5074.432784,0.00033423,5]
[361793235,1747804233324,-157.34,0.000335,31]
[361793237,1747804233334,-656.85822467,0.00033506,2]
[361793239,1747804233344,-268.52,0.00033549,2]
[361793241,1747804233354,-151.0,0.0003362,2]
[361793243,1747804233365,-214.8,0.0003362,2]
[361793245,1747804233375,-5074.432784,0.00033697,5]
[361793247,1747804233386,-1057.634056,0.00033706,4]
[361793249,1747804233396,-656.85822467,0.00033713,2]
[361793251,1747804233407,-20581.0,0.00034,3]
[361793253,1747804233420,-656.85822467,0.00034212,2]
[361793256,1747804233436,-304.48,0.0003423,2]
[361793259,1747804233460,-158.07,0.00034247,2]
[361793261,1747804233471,-578.896,0.00034401,38]
[361793263,1747804233482,-4383.54,0.0003441,2]
[361793265,1747804233494,-244.63831274,0.00034497,2]
[361793267,1747804233504,-656.8582247,0.00034508,2]
[361793269,1747804233515,-4958.0295,0.00034559,2]
[361793272,1747804233527,-3942.864,0.00034559,2]
[361793274,1747804233538,-1133.92242123,0.0003458,2]
[361793276,1747804233549,-761.8723,0.00034649,2]
[361793278,1747804233560,-1000.0,0.00034649,2]
[361793280,1747804233571,-19109.44123301,0.00034659,2]
[361793294,1747804233704,-939.44690143,0.00034659,2]
[361793296,1747804233718,-2249.999995,0.00034659,2]
[361793339,1747804238482,-1113.25646616,0.00034659,2]
[361793344,1747804238514,-819.09999995,0.00034659,2]
[361793346,1747804238528,-491.24369638,0.00034659,2]
[361793349,1747804238547,-855.17208567,0.00034659,2]
[361793495,1747804240064,-255.59500001,0.00030537,2]
[361793502,1747804240121,-627.30299999,0.00030537,2]
[361793504,1747804240131,-2521.65456417,0.00034659,2]
[361793538,1747804240454,-43009.7156894,0.00034659,2]
[361793718,1747804242986,-22281.75456883,0.00034659,2]
[361793719,1747804242996,-1133.92242123,0.00034714,2]
[361793720,1747804243006,-500.0,0.0003473,2]
[361793721,1747804243016,-500.0,0.0003473,2]
[361793722,1747804243026,-430.0,0.0003473,2]
[361793723,1747804243035,-1085.26940586,0.00034748,30]
[361793725,1747804243050,-883.33273846,0.00034749,7]
[361793726,1747804243060,-11000.0,0.00034749,2]
[361793727,1747804243070,-786.25,0.00034749,7]
[361793728,1747804243080,-157.28656283,0.00034749,7]
[361793729,1747804243090,-151.11012977,0.00034749,7]
[361793730,1747804243100,-187.44423182,0.00034749,2]
[361793731,1747804243110,-1188.0,0.00034749,7]
[361793732,1747804243120,-821.02134133,0.00034749,7]
[361793733,1747804243130,-500.0,0.00034757,2]
[361793734,1747804243140,-500.0,0.00034757,2]
[361793735,1747804243149,-430.0,0.00034757,2]
[361793736,1747804243160,-155.212731,0.00034759,7]
[361793737,1747804243170,-500.0,0.00034785,2]
[361793738,1747804243180,-500.0,0.00034785,2]
[361793739,1747804243192,-430.0,0.00034785,2]
[361793740,1747804243202,-500.0,0.00034812,2]
[361793741,1747804243212,-500.0,0.00034812,2]
[361793742,1747804243222,-430.0,0.00034812,2]
[361793743,1747804243232,-153.162686,0.00034821,7]
[361793744,1747804243242,-500.0,0.0003484,2]
[361793745,1747804243252,-500.0,0.0003484,2]
[361793746,1747804243262,-430.0,0.0003484,2]
[361793747,1747804243271,-255.51820524,0.0003484,8]
[361793748,1747804243281,-1133.92242123,0.00034849,2]
[361793749,1747804243291,-166.08066346,0.0003485,15]
[361793750,1747804243300,-500.0,0.00034867,2]
[361793751,1747804243310,-500.0,0.00034867,2]
[361793752,1747804243319,-430.0,0.00034867,2]
[361793753,1747804243329,-155.0,0.00034867,2]
[361793754,1747804243339,-151.0,0.0003487,7]
[361793755,1747804243348,-151.0,0.0003487,7]
[361793756,1747804243358,-151.0,0.0003487,7]
[361793757,1747804243368,-151.0,0.0003487,7]
[361793758,1747804243377,-25000.00278783,0.0003488,120]
[361793759,1747804243387,-151.0,0.0003488,7]
[361793760,1747804243396,-151.0,0.0003488,7]
[361793761,1747804243406,-151.0,0.0003488,7]
[361793762,1747804243416,-266.791102,0.0003488,7]
[361793763,1747804243427,-151.0,0.0003488,7]
[361793764,1747804243438,-151.0,0.0003488,7]
[361793765,1747804243448,-196.0,0.0003488,7]
[361793767,1747804243458,-151.0,0.0003488,7]
[361793769,1747804243467,-151.0,0.0003488,7]
[361793771,1747804243477,-151.76759,0.0003488,7]
[361793773,1747804243487,-151.0,0.0003488,7]
[361793776,1747804243497,-151.0,0.0003488,7]
[361793778,1747804243506,-153.499256,0.0003488,7]
[361793779,1747804243516,-151.0,0.0003488,7]
[361793782,1747804243525,-151.0,0.0003488,7]
[361793784,1747804243535,-151.0,0.0003488,7]
[361793786,1747804243545,-151.0,0.0003488,7]
[361793788,1747804243557,-151.0,0.0003488,7]
[361793792,1747804243567,-152.445254,0.0003488,7]
[361793795,1747804243576,-151.15241,0.0003488,7]
[361793798,1747804243586,-151.0,0.0003488,7]
[361793799,1747804243596,-151.0,0.0003488,7]
[361793800,1747804243606,-151.0,0.0003488,7]
[361793801,1747804243616,-151.0,0.0003488,7]
[361793802,1747804243626,-151.0,0.0003488,7]
[361793803,1747804243635,-151.0,0.0003488,7]
[361793804,1747804243645,-151.0,0.0003488,7]
[361793805,1747804243655,-151.0,0.0003488,7]
[361793806,1747804243665,-152.430185,0.0003488,7]
[361793807,1747804243676,-319.340175,0.0003488,7]
[361793808,1747804243687,-319.340175,0.0003488,7]
[361793809,1747804243696,-280.855979,0.0003488,7]
[361793810,1747804243706,-280.855979,0.0003488,7]
[361793811,1747804243716,-297.56668,0.0003488,7]
[361793812,1747804243725,-152.760654,0.0003488,7]
[361793813,1747804243735,-151.0,0.00034886,7]
[361793814,1747804243747,-225.908622,0.00034886,7]
[361793815,1747804243758,-225.908622,0.00034886,7]
[361793816,1747804243768,-5000.0,0.0003489,2]
[361793817,1747804243779,-389.406766,0.00034894,2]
[361793818,1747804243789,-500.0,0.00034894,2]
[361793819,1747804243799,-430.0,0.00034894,2]
[361793820,1747804243809,-500.0,0.00034922,2]
[361793821,1747804243819,-430.0,0.00034922,2]
[361793822,1747804243829,-155.343,0.00034938,2]
[361793823,1747804243840,-191.34178612,0.00034939,7]
[361793824,1747804243850,-158.04436007,0.00034939,7]
[361793825,1747804243860,-500.0,0.00034939,7]
[361793826,1747804243871,-261.75334907,0.00034939,7]
[361793827,1747804243881,-500.0,0.00034939,7]
[361793828,1747804243891,-220.87765324,0.00034939,7]
[361793829,1747804243900,-199.58225185,0.00034939,7]
[361793830,1747804243911,-711.66974798,0.00034939,2]
[361793831,1747804243921,-47574.06750778,0.00034939,2]
[361793832,1747804243940,-400893.91406375,0.00034939,2]
[361793833,1747804243950,-225048.303017,0.0003494,2]
[361793834,1747804243961,-16284.0907492,0.0003494,2]
[361793835,1747804243971,-22504.8303017,0.0003494,2]
[361793836,1747804243982,-6106.53403095,0.0003494,2]
[361793837,1747804243994,-2035.51134365,0.00034945,2]
[361793839,1747804244004,-319.340175,0.00034949,7]
[361793841,1747804244015,-319.340175,0.00034949,7]
[361793842,1747804244026,-280.855979,0.00034949,7]
[361793843,1747804244037,-280.855979,0.00034949,7]
[361793844,1747804244048,-500.0,0.00034949,2]
[361793845,1747804244058,-430.0,0.00034949,2]
[361793846,1747804244070,-151.0,0.0003495,7]
[361793847,1747804244080,-151.0,0.0003495,7]
[361793848,1747804244091,-242.725336,0.0003495,7]
[361793849,1747804244102,-151.0,0.0003495,7]
[361793850,1747804244114,-151.0,0.0003495,7]
[361793851,1747804244124,-151.0,0.0003495,7]
[361793852,1747804244135,-151.0,0.0003495,7]
[361793853,1747804244146,-153.246101,0.0003495,7]
[361793854,1747804244157,-151.0,0.0003495,7]
[361793855,1747804244169,-151.0,0.0003495,7]
[361793856,1747804244181,-151.0,0.0003495,7]
[361793857,1747804244196,-151.0,0.0003495,7]
[361793858,1747804244211,-151.0,0.0003495,7]
[361793859,1747804244224,-151.0,0.0003495,7]
[361793860,1747804244235,-151.0,0.0003495,7]
[361793861,1747804244247,-151.0,0.0003495,7]
[361793862,1747804244260,-576.783657,0.0003495,7]
[361793863,1747804244271,-576.783657,0.0003495,7]
[361793864,1747804244282,-576.783657,0.0003495,7]
[361793865,1747804244294,-576.783657,0.0003495,7]
[361793866,1747804244306,-298.90582,0.0003495,7]
[361793867,1747804244319,-298.90582,0.0003495,7]
[361793868,1747804244331,-298.90582,0.0003495,7]
[361793869,1747804244343,-298.90582,0.0003495,7]
[361793870,1747804244355,-151.0,0.0003495,7]
[361793871,1747804244367,-151.0,0.0003495,7]
[361793872,1747804244378,-151.0,0.0003495,7]
[361793873,1747804244389,-264.361499,0.0003495,7]
[361793874,1747804244401,-151.0,0.0003495,7]
[361793875,1747804244412,-151.0,0.0003495,7]
[361793876,1747804244423,-22504.8303017,0.0003495,2]
[361793877,1747804244434,-248.205868,0.0003495,7]
[361793878,1747804244446,-248.205868,0.0003495,7]
[361793879,1747804244458,-248.205868,0.0003495,7]
[361793880,1747804244470,-248.205868,0.0003495,7]
[361793881,1747804244483,-319.340175,0.0003495,7]
[361793882,1747804244495,-319.340175,0.0003495,7]
[361793883,1747804244506,-319.340175,0.0003495,7]
[361793884,1747804244518,-319.340175,0.0003495,7]
[361793885,1747804244530,-319.340175,0.0003495,7]
[361793886,1747804244540,-319.340175,0.0003495,7]
[361793887,1747804244551,-280.855979,0.0003495,7]
[361793888,1747804244562,-280.855979,0.0003495,7]
[361793889,1747804244573,-280.855979,0.0003495,7]
[361793890,1747804244584,-280.855979,0.0003495,7]
[361793891,1747804244594,-280.855979,0.0003495,7]
[361793892,1747804244607,-280.855979,0.0003495,7]
[361793893,1747804244617,-151.0,0.0003495,7]
[361793894,1747804244628,-2035.51134365,0.0003495,2]
[361793895,1747804244639,-1000.0,0.00034959,30]
[361793896,1747804244651,-151.0,0.00034959,7]
[361793897,1747804244663,-151.0,0.00034959,7]
[361793898,1747804244674,-151.0,0.00034959,7]
[361793899,1747804244685,-182.197787,0.00034959,7]
[361793900,1747804244696,-182.197787,0.00034959,7]
[361793901,1747804244708,-182.197787,0.00034959,7]
[361793902,1747804244719,-182.197787,0.00034959,7]
[361793903,1747804244731,-151.0,0.00034959,7]
[361793904,1747804244743,-151.0,0.00034959,7]
[361793905,1747804244756,-151.0,0.00034959,7]
[361793906,1747804244769,-151.0,0.00034959,7]
[361793907,1747804244780,-151.0,0.00034959,7]
[361793908,1747804244791,-151.0,0.00034959,7]
[361793909,1747804244802,-229.612003,0.0003496,7]
[361793910,1747804244813,-151.0,0.0003496,7]
[361793911,1747804244824,-151.0,0.0003496,7]
[361793912,1747804244836,-225.908622,0.0003496,7]
[361793913,1747804244848,-225.908622,0.0003496,7]
[361793914,1747804244858,-151.0,0.0003496,7]
[361793915,1747804244869,-151.0,0.0003496,7]
[361793916,1747804244880,-151.0,0.0003496,7]
[361793917,1747804244892,-223.260611,0.0003496,7]
[361793918,1747804244902,-151.0,0.0003496,7]
[361793919,1747804244913,-152.159025,0.0003496,7]
[361793920,1747804244924,-151.0,0.0003496,7]
[361793921,1747804244936,-151.0,0.0003496,7]
[361793922,1747804244948,-151.0,0.0003496,7]
[361793923,1747804244959,-151.0,0.0003496,7]
[361793924,1747804244971,-151.0,0.0003496,7]
[361793925,1747804244982,-151.0,0.0003496,7]
[361793926,1747804244994,-151.0,0.0003496,7]
[361793927,1747804245006,-182.197787,0.0003496,7]
[361793928,1747804245017,-182.197787,0.0003496,7]
[361793929,1747804245029,-151.0,0.0003496,7]
[361793930,1747804245040,-151.0,0.0003496,7]
[361793931,1747804245051,-182.197787,0.0003496,7]
[361793932,1747804245063,-182.197787,0.0003496,7]
[361793933,1747804245074,-151.0,0.0003496,7]
[361793934,1747804245086,-151.0,0.0003496,7]
[361793935,1747804245097,-273.23399,0.0003496,7]
[361793936,1747804245109,-151.0,0.0003496,7]
[361793937,1747804245120,-151.0,0.0003496,7]
[361793938,1747804245132,-151.0,0.0003496,7]
[361793939,1747804245143,-576.783657,0.0003496,7]
[361793940,1747804245154,-576.783657,0.0003496,7]
[361793941,1747804245166,-151.0,0.0003496,7]
[361793942,1747804245177,-151.0,0.0003496,7]
[361793943,1747804245189,-298.90582,0.0003496,7]
[361793944,1747804245200,-298.90582,0.0003496,7]
[361793945,1747804245212,-151.0,0.0003496,7]
[361793946,1747804245223,-248.205868,0.0003496,7]
[361793947,1747804245235,-248.205868,0.0003496,7]
[361793948,1747804245246,-319.340175,0.0003496,7]
[361793949,1747804245257,-319.340175,0.0003496,7]
[361793950,1747804245269,-280.855979,0.0003496,7]
[361793951,1747804245280,-280.855979,0.0003496,7]
[361793952,1747804245292,-2035.51134365,0.0003496,2]
[361793953,1747804245304,-151.0,0.00034961,7]
[361793954,1747804245315,-151.0,0.00034961,7]
[361793955,1747804245328,-151.0,0.00034961,7]
[361793956,1747804245340,-151.0,0.00034961,7]
[361793957,1747804245351,-151.0,0.00034961,7]
[361793958,1747804245363,-225.908622,0.00034961,7]
[361793959,1747804245374,-225.908622,0.00034961,7]
[361793960,1747804245385,-151.0,0.00034961,7]
[361793961,1747804245396,-151.0,0.00034961,7]
[361793962,1747804245408,-151.0,0.00034961,7]
[361793963,1747804245419,-181.636781,0.00034961,7]
[361793964,1747804245430,-151.0,0.00034961,7]
[361793965,1747804245442,-151.0,0.00034961,7]
[361793966,1747804245453,-182.197787,0.00034961,7]
[361793967,1747804245464,-263.193303,0.00034961,7]
[361793968,1747804245476,-182.197787,0.00034961,7]
[361793969,1747804245487,-151.0,0.00034961,7]
[361793970,1747804245498,-576.783657,0.00034961,7]
[361793971,1747804245510,-576.783657,0.00034961,7]
[361793972,1747804245521,-151.0,0.00034961,7]
[361793973,1747804245532,-298.90582,0.00034961,7]
[361793974,1747804245543,-298.90582,0.00034961,7]
[361793975,1747804245555,-151.0,0.00034961,7]
[361793976,1747804245566,-248.205868,0.00034961,7]
[361793977,1747804245578,-248.205868,0.00034961,7]
[361793978,1747804245589,-151.0,0.00034969,7]
[361793979,1747804245601,-151.0,0.00034969,7]
[361793980,1747804245612,-151.0,0.00034969,7]
[361793981,1747804245629,-225.908622,0.00034969,7]
[361793982,1747804245644,-225.908622,0.00034969,7]
[361793983,1747804245661,-151.0,0.00034969,7]
[361793984,1747804245676,-151.0,0.0003497,7]
[361793985,1747804245689,-151.0,0.0003497,7]
[361793986,1747804245704,-151.0,0.0003497,7]
[361793987,1747804245720,-151.0,0.0003497,7]
[361793988,1747804245735,-223.3097,0.0003497,7]
[361793989,1747804245752,-151.0,0.0003497,7]
[361793990,1747804245768,-151.0,0.0003497,7]
[361793991,1747804245782,-151.0,0.0003497,7]
[361793992,1747804245797,-151.0,0.0003497,7]
[361793993,1747804245809,-151.0,0.0003497,7]
[361793994,1747804245823,-151.0,0.0003497,7]
[361793995,1747804245840,-22504.8303017,0.0003497,2]
[361793996,1747804245854,-500.0,0.00034977,2]
[361793997,1747804245869,-430.0,0.00034977,2]
[361793998,1747804245885,-151.0,0.0003498,7]
[361793999,1747804245900,-319.340175,0.0003498,7]
[361794000,1747804245913,-319.340175,0.0003498,7]
[361794001,1747804245929,-280.855979,0.0003498,7]
[361794002,1747804245945,-280.855979,0.0003498,7]
[361794003,1747804245959,-4071.0226873,0.0003498,2]
[361794004,1747804245974,-1133.92242123,0.00034983,2]
[361794005,1747804245988,-15000.0,0.0003499,2]
[361794006,1747804246003,-151.0,0.0003499,7]
[361794007,1747804246019,-151.0,0.0003499,7]
[361794008,1747804246036,-151.0,0.0003499,7]
[361794009,1747804246050,-151.0,0.0003499,7]
[361794010,1747804246064,-225.908622,0.0003499,7]
[361794011,1747804246076,-225.908622,0.0003499,7]
[361794012,1747804246089,-151.0,0.0003499,7]
[361794013,1747804246104,-151.0,0.0003499,7]
[361794014,1747804246121,-151.0,0.0003499,7]
[361794015,1747804246135,-151.0,0.0003499,7]
[361794016,1747804246147,-179.767078,0.0003499,7]
[361794017,1747804246160,-182.197787,0.0003499,7]
[361794018,1747804246173,-182.197787,0.0003499,7]
[361794019,1747804246189,-151.0,0.0003499,7]
[361794020,1747804246202,-151.0,0.0003499,7]
[361794021,1747804246215,-151.0,0.0003499,7]
[361794022,1747804246228,-151.0,0.0003499,7]
[361794023,1747804246241,-576.783657,0.0003499,7]
[361794024,1747804246255,-576.783657,0.0003499,7]
[361794025,1747804246268,-576.783657,0.0003499,7]
[361794026,1747804246281,-151.0,0.0003499,7]
[361794027,1747804246294,-576.783657,0.0003499,7]
[361794028,1747804246322,-298.90582,0.0003499,7]
[361794029,1747804246335,-298.90582,0.0003499,7]
[361794030,1747804246348,-298.90582,0.0003499,7]
[361794031,1747804246362,-298.90582,0.0003499,7]
[361794032,1747804246375,-154.162494,0.0003499,7]
[361794033,1747804246389,-22504.8303017,0.0003499,2]
[361794034,1747804246402,-4071.0226873,0.0003499,2]
[361794035,1747804246417,-248.205868,0.0003499,7]
[361794036,1747804246431,-248.205868,0.0003499,7]
[361794037,1747804246446,-248.205868,0.0003499,7]
[361794038,1747804246460,-248.205868,0.0003499,7]
[361794039,1747804246473,-319.340175,0.0003499,7]
[361794040,1747804246487,-319.340175,0.0003499,7]
[361794041,1747804246500,-280.855979,0.0003499,7]
[361794042,1747804246513,-280.855979,0.0003499,7]
[361794044,1747804246527,-151.0,0.00035,7]
[361794046,1747804246540,-151.0,0.00035,7]
[361794048,1747804246554,-151.0,0.00035,7]
[361794050,1747804246568,-151.0,0.00035,7]
[361794051,1747804246582,-164.08347,0.00035,7]
[361794053,1747804246595,-151.0,0.00035,7]
[361794055,1747804246608,-225.908622,0.00035,7]
[361794056,1747804246620,-225.908622,0.00035,7]
[361794057,1747804246633,-151.0,0.00035,7]
[361794058,1747804246647,-151.0,0.00035,7]
[361794059,1747804246665,-157.26992,0.00035,7]
[361794060,1747804246679,-182.197787,0.00035,7]
[361794061,1747804246694,-182.197787,0.00035,7]
[361794062,1747804246708,-151.0,0.00035,7]
[361794063,1747804246721,-151.0,0.00035,7]
[361794064,1747804246734,-319.340175,0.00035,7]
[361794065,1747804246750,-319.340175,0.00035,7]
[361794066,1747804246766,-280.855979,0.00035,7]
[361794067,1747804246780,-280.855979,0.00035,7]
[361794068,1747804246793,-16930.36929061,0.00035,14]
[361794070,1747804246808,-2900.0,0.00035,30]
[361794072,1747804246821,-501.21234881,0.00035004,2]
[361794075,1747804246834,-430.0,0.00035004,2]
[361794077,1747804246849,-211.0,0.0003501,2]
[361794079,1747804246861,-430.0,0.00035031,2]
[361794082,1747804246875,-430.0,0.00035059,2]
[361794084,1747804246887,-430.0,0.00035086,2]